[Event "41st Jacques-Lemans-Open 2022"]
[Site "St. Veit/Glan"]
[Date "2022.07.09"]
[Round "1.8"]
[White "Kruckenhauser, Arthur"]
[Black "Kuhn, Gerhard"]
[Result "1-0"]
[ECO "B10"]
[WhiteElo "2303"]
[BlackElo "1979"]
[Annotator "RC"]
[PlyCount "59"]
[EventDate "2022.07.09"]
[EventType "swiss"]
[EventCountry "AUT"]
[SourceTitle "playchess.com"]
[Source "ChessBase"]
[SourceQuality "1"]
[TimeControl "40/5400+30:1800+30"]

1. e4 {[%emt 0:00:14]} c6 {[%emt 0:00:15]} 2. c4 {[%emt 0:00:20]} d5 {[%emt 0:00:38]} 3. exd5 {[%emt 0:00:08]} cxd5 {[%emt 0:00:04]} 4. cxd5 {[%emt 0:00:07]} Nf6 {[%emt 0:00:19]} 5. Nc3 {[%emt 0:00:06]} Nxd5 {[%emt 0:01:27]} 6. Nf3 {[%emt 0:00:11]} e6 {[%emt 0:02:00]} 7. d4 {[%emt 0:00:38]} Be7 {[%emt 0:01:38]} 8. Bd3 {[%emt 0:00:16]} Nc6 {[%emt 0:00:37]} 9. O-O {[%emt 0:00:45]} O-O {[%emt 0:02:21]} 10. Re1 {[%emt 0:00:47]} Nxc3 {[%emt 0:05:08]} 11. bxc3 {[%emt 0:00:03]} b6 {[%emt 0:02:59]} 12. Be4 {[%emt 0:16:07]} Bb7 {[%emt 0:00:27]} 13. Ne5 {[%emt 0:05:34]} Rc8 {[%emt 0:04:49]} 14. Qh5 {[%emt 0:03:17]} f5 {[%emt 0:10:27]} 15. Bxc6 {[%emt 0:11:31]} Bxc6 {[%emt 0:00:13]} 16. Re3 {[%emt 0:01:38]} Be8 {[%emt 0:03:47]} 17. Qd1 {[%emt 0:03:23]} Rc7 {[%emt 0:08:16]} 18. Bb2 {[%emt 0:05:26]} Qc8 {[%emt 0:06:17]} 19. Qb3 {[%emt 0:01:34]} Bd6 {[%emt 0:04:16]} 20. Ba3 {[%emt 0:06:23]} Bxe5 {[%emt 0:12:17]} 21. Bxf8 {[%emt 0:06:06]} Bxd4 {[%emt 0:06:13]} 22. cxd4 {[%emt 0:00:55]} Rc1+ {[%emt 0:01:25]} 23. Re1 {[%emt 0:00:04]} Rxa1 {[%emt 0:00:29]} 24. Rxa1 {[%emt 0:00:05]} Kxf8 {[%emt 0:00:08]} 25. Qa3+ {[%emt 0:00:24]} Kg8 {[%emt 0:02:15]} 26. Rc1 {[%emt 0:00:47]} Qd7 {[%emt 0:01:27]} 27. Qc3 {[%emt 0:00:33]} Kf8 {[%emt 0:02:06]} 28. h3 {[%emt 0:01:13]} b5 {[%emt 0:00:50]} 29. Qc5+ {[%emt 0:00:28]} Kf7 {[%emt 0:00:54]} 30. Qe5 {[%emt 0:00:54]} 1-0

[Event "41st Jacques-Lemans-Open 2022"]
[Site "St. Veit/Glan"]
[Date "2022.07.09"]
[Round "1.9"]
[White "Weichhart, Daniel"]
[Black "Huber, Benedikt"]
[Result "0-1"]
[ECO "E06"]
[WhiteElo "1965"]
[BlackElo "2289"]
[Annotator "RC"]
[PlyCount "60"]
[EventDate "2022.07.09"]
[EventType "swiss"]
[EventCountry "AUT"]
[SourceTitle "playchess.com"]
[Source "ChessBase"]
[SourceQuality "1"]
[TimeControl "40/5400+30:1800+30"]

1. d4 {[%emt 0:00:10]} Nf6 {[%emt 0:00:08]} 2. c4 {[%emt 0:00:05]} e6 {[%emt 0:00:06]} 3. Nf3 {[%emt 0:00:35]} d5 {[%emt 0:00:06]} 4. g3 {[%emt 0:00:00]} Be7 {[%emt 0:00:13]} 5. Bg2 {[%emt 0:00:00]} O-O {[%emt 0:00:09]} 6. O-O {[%emt 0:00:00]} dxc4 {[%emt 0:00:06]} 7. Qc2 {[%emt 0:00:07]} a6 {[%emt 0:00:07]} 8. a4 {[%emt 0:00:06]} Bd7 {[%emt 0:00:11]} 9. Qxc4 {[%emt 0:00:07]} Bc6 {[%emt 0:00:05]} 10. Bg5 {[%emt 0:00:08]} Bd5 {[%emt 0:00:09]} 11. Qd3 {[%emt 0:00:07]} c5 {[%emt 0:00:42]} 12. Nc3 {[%emt 0:01:02]} Bc6 {[%emt 0:00:43]} 13. Rfd1 {[%emt 0:07:39]} Qa5 {[%emt 0:00:39]} 14. dxc5 {[%emt 0:05:45]} Nbd7 {[%emt 0:05:05]} 15. Qc4 {[%emt 0:09:30]} Bxc5 {[%emt 0:10:58]} 16. Bd2 {[%emt 0:06:20]} Qb6 {[%emt 0:01:54]} 17. Be1 {[%emt 0:02:25]} Rac8 {[%emt 0:07:21]} 18. a5 {[%emt 0:05:29]} Qd8 {[%emt 0:02:28]} 19. Nd4 {[%emt 0:07:10]} Bxg2 {[%emt 0:16:43]} 20. Kxg2 {[%emt 0:01:01]} Ne5 {[%emt 0:02:51]} 21. Qa4 {[%emt 0:06:01]} Qe7 {[%emt 0:00:41]} 22. Rac1 {[%emt 0:07:13]} Rc7 {[%emt 0:09:26]} 23. Nf3 {[%emt 0:04:06]} Ned7 {[%emt 0:19:30]} 24. Ne4 {[%emt 0:00:53]} Nxe4 {[%emt 0:00:51]} 25. Qxe4 {[%emt 0:00:07]} Nf6 {[%emt 0:00:09]} 26. Qe5 {[%emt 0:00:14]} Rfc8 {[%emt 0:05:02]} 27. Bc3 {[%emt 0:02:54]} Qf8 {[%emt 0:07:04]} 28. Bb4 {[%emt 0:02:20]} Nd5 {[%emt 0:02:40]} 29. Rxc5 {[%emt 0:01:52]} Rxc5 {[%emt 0:00:08]} 30. Rc1 {[%emt 0:01:19]} Nxb4 {[%emt 0:00:07]} 0-1

[Event "41st Jacques-Lemans-Open 2022"]
[Site "St. Veit/Glan"]
[Date "2022.07.09"]
[Round "1.10"]
[White "Sandhoefner, Florian"]
[Black "Stadlinger, Matthias"]
[Result "1-0"]
[ECO "C03"]
[WhiteElo "2289"]
[BlackElo "1975"]
[Annotator "RC"]
[PlyCount "55"]
[EventDate "2022.07.09"]
[EventType "swiss"]
[EventCountry "AUT"]
[SourceTitle "playchess.com"]
[Source "ChessBase"]
[SourceQuality "1"]
[TimeControl "40/5400+30:1800+30"]

1. e4 {[%emt 0:00:02]} e6 {[%emt 0:00:11]} 2. d4 {[%emt 0:00:08]} d5 {[%emt 0:00:08]} 3. Nd2 {[%emt 0:00:03]} dxe4 {[%emt 0:00:38]} 4. Nxe4 {[%emt 0:00:02]} Nf6 {[%emt 0:00:22]} 5. Nxf6+ {[%emt 0:00:17]} gxf6 {[%emt 0:00:08]} 6. Nf3 {[%emt 0:00:18]} Nc6 {[%emt 0:00:29]} 7. Be3 {[%emt 0:01:32]} b6 {[%emt 0:00:40]} 8. Qd2 {[%emt 0:02:04]} Bb7 {[%emt 0:00:11]} 9. O-O-O {[%emt 0:01:55]} Qd7 {[%emt 0:02:08]} 10. Bh6 {[%emt 0:05:49]} O-O-O {[%emt 0:03:49]} 11. Bxf8 {[%emt 0:06:28]} Rdxf8 {[%emt 0:02:51]} 12. Qf4 {[%emt 0:03:16]} Nb4 {[%emt 0:08:32]} 13. a3 {[%emt 0:04:57]} Nd5 {[%emt 0:00:42]} 14. Qd2 {[%emt 0:05:29]} Rd8 {[%emt 0:03:58]} 15. g3 {[%emt 0:11:45]} Ne7 {[%emt 0:12:23]} 16. Bg2 {[%emt 0:06:17]} Nf5 {[%emt 0:00:07]} 17. c3 {[%emt 0:01:20]} Qa4 {[%emt 0:01:28]} 18. Qc2 {[%emt 0:02:37]} Qa5 {[%emt 0:07:43]} 19. Ne1 {[%emt 0:10:00]} Bxg2 {[%emt 0:05:18]} 20. Nxg2 {[%emt 0:01:16]} c5 {[%emt 0:01:30]} 21. d5 {[%emt 0:00:53]} Qb5 {[%emt 0:11:50]} 22. dxe6 {[%emt 0:03:12]} fxe6 {[%emt 0:01:35]} 23. Qe4 {[%emt 0:01:08]} Kc7 {[%emt 0:07:18]} 24. Qxe6 {[%emt 0:05:11]} Nd6 {[%emt 0:00:06]} 25. Ne3 {[%emt 0:01:14]} Rhe8 {[%emt 0:02:27]} 26. Qxf6 {[%emt 0:02:49]} Qb3 {[%emt 0:01:35]} 27. Rd2 {[%emt 0:08:16]} Ne4 {[%emt 0:03:50]} 28. Qf4+ {[%emt 0:01:52]} 1-0

[Event "41st Jacques-Lemans-Open 2022"]
[Site "St. Veit/Glan"]
[Date "2022.07.09"]
[Round "1.11"]
[White "Tonel, Giulia"]
[Black "Dotzer, Lukas"]
[Result "1-0"]
[ECO "B90"]
[WhiteElo "1969"]
[BlackElo "2269"]
[Annotator "RC"]
[PlyCount "49"]
[EventDate "2022.07.09"]
[EventType "swiss"]
[EventCountry "AUT"]
[SourceTitle "playchess.com"]
[Source "ChessBase"]
[SourceQuality "1"]
[TimeControl "40/5400+30:1800+30"]

1. e4 {[%emt 0:00:10]} c5 {[%emt 0:00:05]} 2. Nf3 {[%emt 0:00:08]} d6 {[%emt 0:00:06]} 3. d4 {[%emt 0:00:22]} cxd4 {[%emt 0:00:09]} 4. Nxd4 {[%emt 0:00:11]} Nf6 {[%emt 0:00:07]} 5. Nc3 {[%emt 0:00:10]} a6 {[%emt 0:00:17]} 6. h3 {[%emt 0:00:51]} e5 {[%emt 0:01:32]} 7. Nde2 {[%emt 0:00:58]} b5 {[%emt 0:08:19]} 8. g4 {[%emt 0:01:07]} Bb7 {[%emt 0:01:45]} 9. Bg2 {[%emt 0:01:36]} b4 {[%emt 0:01:38]} 10. Nd5 {[%emt 0:03:42]} Nxd5 {[%emt 0:01:10]} 11. exd5 {[%emt 0:00:12]} Nd7 {[%emt 0:13:17]} 12. Be3 {[%emt 0:13:25]} Qa5 {[%emt 0:05:39]} 13. O-O Nb6 {[%emt 0:01:44]} 14. a3 {[%emt 0:13:10]} Nxd5 {[%emt 0:11:53]} 15. axb4 {[%emt 0:05:23]} Nxe3 {[%emt 0:00:16]} 16. Rxa5 {[%emt 0:03:30]} Nxg2 {[%emt 0:05:06]} 17. Qd3 {[%emt 0:10:08]} Nh4 {[%emt 0:02:10]} 18. f4 {[%emt 0:08:59]} f6 {[%emt 0:09:22]} 19. b5 {[%emt 0:04:42]} e4 {[%emt 0:01:49]} 20. Qc4 {[%emt 0:03:29]} Nf3+ {[%emt 0:02:19]} 21. Rxf3 {[%emt 0:02:15]} exf3 {[%emt 0:00:09]} 22. Nd4 {[%emt 0:01:00]} Be7 {[%emt 0:01:32]} 23. bxa6 {[%emt 0:01:14]} Be4 {[%emt 0:00:36]} 24. Qe6 {[%emt 0:01:32]} d5 {[%emt 0:00:29]} 25. Nc6 {[%emt 0:00:46]} 1-0

[Event "41st Jacques-Lemans-Open 2022"]
[Site "St. Veit/Glan"]
[Date "2022.07.09"]
[Round "1.12"]
[White "Novosel, Lovro"]
[Black "Hengl, Philip"]
[Result "1-0"]
[ECO "D02"]
[WhiteElo "2255"]
[BlackElo "1968"]
[Annotator "RC"]
[PlyCount "43"]
[EventDate "2022.07.09"]
[EventType "swiss"]
[EventCountry "AUT"]
[SourceTitle "playchess.com"]
[Source "ChessBase"]
[SourceQuality "1"]
[TimeControl "40/5400+30:1800+30"]

1. Nf3 {[%emt 0:00:11]} d5 {[%emt 0:00:18]} 2. d4 {[%emt 0:00:15]} Nf6 {[%emt 0:00:11]} 3. c4 {[%emt 0:00:19]} e6 {[%emt 0:00:05]} 4. g3 {[%emt 0:00:16]} Bb4+ {[%emt 0:00:44]} 5. Bd2 {[%emt 0:00:56]} Be7 {[%emt 0:00:07]} 6. Bg2 {[%emt 0:00:21]} O-O {[%emt 0:00:27]} 7. O-O {[%emt 0:00:09]} Nbd7 {[%emt 0:00:03]} 8. Qc2 {[%emt 0:00:18]} Ne4 {[%emt 0:00:29]} 9. Bf4 {[%emt 0:05:13]} c6 {[%emt 0:02:53]} 10. Nc3 {[%emt 0:01:24]} g5 {[%emt 0:00:57]} 11. Bd2 {[%emt 0:06:17]} f5 {[%emt 0:02:37]} 12. Rab1 {[%emt 0:03:28]} a5 {[%emt 0:06:09]} 13. a3 {[%emt 0:09:05]} b6 {[%emt 0:06:54]} 14. cxd5 {[%emt 0:01:00]} cxd5 {[%emt 0:03:58]} 15. Nb5 {[%emt 0:24:56]} Ba6 {[%emt 0:05:46]} 16. a4 {[%emt 0:00:28]} Rc8 {[%emt 0:00:41]} 17. Qd3 {[%emt 0:00:37]} h6 {[%emt 0:29:52]} 18. Rfc1 {[%emt 0:05:07]} Rxc1+ {[%emt 0:00:29]} 19. Rxc1 {[%emt 0:00:17]} Qb8 {[%emt 0:00:36]} 20. Rc6 {[%emt 0:00:47]} Nd6 {[%emt 0:02:07]} 21. Qe3 {[%emt 0:02:12]} Kf7 {[%emt 0:02:13]} 22. Nc7 {[%emt 0:03:07]} 1-0

[Event "41st Jacques-Lemans-Open 2022"]
[Site "St. Veit/Glan"]
[Date "2022.07.09"]
[Round "1.13"]
[White "Erber, Siegfried"]
[Black "Caruso, Augusto"]
[Result "1/2-1/2"]
[ECO "C50"]
[WhiteElo "1967"]
[BlackElo "2132"]
[Annotator "NA RC"]
[PlyCount "41"]
[EventDate "2022.07.09"]
[EventType "swiss"]
[EventCountry "AUT"]
[SourceTitle "playchess.com"]
[Source "ChessBase"]
[SourceQuality "1"]
[TimeControl "40/5400+30:1800+30"]

1. e4 {[%emt 0:00:10]} e5 {[%emt 0:00:38]} 2. Nf3 {[%emt 0:00:19]} Nc6 {[%emt 0:00:04]} 3. Bc4 {[%emt 0:00:24]} Nf6 {[%emt 0:01:52]} 4. d3 {[%emt 0:01:05]} Bc5 {[%emt 0:01:27]} 5. c3 {[%emt 0:01:19]} a6 {[%emt 0:00:33]} 6. O-O {[%emt 0:00:56]} Ba7 {[%emt 0:00:15]} 7. Re1 {[%emt 0:03:24]} d6 {[%emt 0:04:31]} 8. Bb3 {[%emt 0:02:07]} O-O {[%emt 0:07:35]} 9. Nbd2 {[%emt 0:07:31]} Ne7 {[%emt 0:05:54]} 10. Nf1 {[%emt 0:02:03]} Ng6 {[%emt 0:01:37]} 11. Be3 {[%emt 0:05:46]} c6 {[%emt 0:02:16]} 12. Bxa7 {[%emt 0:01:47]} Rxa7 {[%emt 0:00:01]} 13. d4 {[%emt 0:05:22]} b5 {[%emt 0:04:13]} 14. Ng3 {[%emt 0:10:22]} Qb6 {[%emt 0:14:24]} 15. h3 {[%emt 0:05:30]} c5 {[%emt 0:03:36]} 16. Qd2 {[%emt 0:08:41]} Re8 {[%emt 0:07:25]} 17. Rad1 {[%emt 0:02:23]} exd4 {[%emt 0:10:01]} 18. cxd4 {[%emt 0:17:27]} Rae7 {[%emt 0:13:40]} 19. Ng5 {[%emt 0:01:11]} c4 {[%emt 0:04:39]} 20. Bc2 {[%emt 0:05:27]} Qc7 21. f4 1/2-1/2

[Event "41st Jacques-Lemans-Open 2022"]
[Site "St. Veit/Glan"]
[Date "2022.07.09"]
[Round "1.14"]
[White "Windhager, Hannes"]
[Black "Galoic, David"]
[Result "1-0"]
[ECO "B52"]
[WhiteElo "2244"]
[BlackElo "1963"]
[Annotator "RC"]
[PlyCount "43"]
[EventDate "2022.07.09"]
[EventType "swiss"]
[EventCountry "AUT"]
[SourceTitle "playchess.com"]
[Source "ChessBase"]
[SourceQuality "1"]
[TimeControl "40/5400+30:1800+30"]

1. e4 {[%emt 0:00:04]} c5 {[%emt 0:00:22]} 2. Nf3 {[%emt 0:00:08]} d6 {[%emt 0:00:24]} 3. Bb5+ {[%emt 0:00:23]} Bd7 {[%emt 0:00:48]} 4. Bxd7+ {[%emt 0:00:17]} Qxd7 {[%emt 0:00:13]} 5. c4 {[%emt 0:00:41]} e5 {[%emt 0:01:16]} 6. d3 {[%emt 0:01:00]} Ne7 {[%emt 0:01:58]} 7. Nc3 {[%emt 0:01:10]} h6 {[%emt 0:02:20]} 8. a3 {[%emt 0:04:22]} Nbc6 {[%emt 0:03:34]} 9. O-O {[%emt 0:03:24]} g6 {[%emt 0:01:34]} 10. Rb1 {[%emt 0:15:07]} Bg7 {[%emt 0:07:28]} 11. b4 {[%emt 0:00:55]} b6 {[%emt 0:00:19]} 12. Nd5 {[%emt 0:04:29]} Nd4 {[%emt 0:03:48]} 13. Nxd4 {[%emt 0:03:05]} Nxd5 {[%emt 0:06:04]} 14. Ne2 {[%emt 0:07:52]} Ne7 {[%emt 0:00:44]} 15. Nc3 {[%emt 0:01:40]} O-O {[%emt 0:01:20]} 16. Bd2 {[%emt 0:08:10]} f5 {[%emt 0:04:09]} 17. exf5 {[%emt 0:04:32]} gxf5 {[%emt 0:02:28]} 18. Qh5 {[%emt 0:05:56]} Kh7 {[%emt 0:20:01]} 19. Rfe1 {[%emt 0:02:15]} Rf6 {[%emt 0:05:36]} 20. Bg5 {[%emt 0:02:52]} Rg8 {[%emt 0:02:30]} 21. Bxf6 {[%emt 0:00:24]} Bxf6 {[%emt 0:00:02]} 22. Qf7+ {[%emt 0:01:08]} 1-0

[Event "41st Jacques-Lemans-Open 2022"]
[Site "St. Veit/Glan"]
[Date "2022.07.09"]
[Round "1.15"]
[White "Zaytsev, Alexander"]
[Black "Riemelmoser, Franz"]
[Result "0-1"]
[ECO "C01"]
[WhiteElo "1963"]
[BlackElo "2237"]
[Annotator "RC"]
[PlyCount "81"]
[EventDate "2022.07.09"]
[EventType "swiss"]
[EventCountry "AUT"]
[SourceTitle "playchess.com"]
[Source "ChessBase"]
[SourceQuality "1"]
[TimeControl "40/5400+30:1800+30"]

1. e4 {[%emt 0:00:03]} e6 {[%emt 0:00:09]} 2. d4 {[%emt 0:00:06]} d5 {[%emt 0:00:07]} 3. exd5 {[%emt 0:00:04]} exd5 {[%emt 0:00:09]} 4. Bd3 {[%emt 0:00:08]} Bd6 {[%emt 0:02:42]} 5. Nf3 {[%emt 0:01:52]} Nf6 {[%emt 0:00:12]} 6. h3 {[%emt 0:00:27]} O-O {[%emt 0:00:35]} 7. O-O {[%emt 0:00:13]} Nbd7 {[%emt 0:02:30]} 8. c3 {[%emt 0:03:22]} a5 {[%emt 0:01:49]} 9. Re1 {[%emt 0:02:09]} Re8 {[%emt 0:00:56]} 10. Nbd2 {[%emt 0:01:42]} a4 {[%emt 0:00:31]} 11. Nf1 {[%emt 0:01:33]} h6 {[%emt 0:05:52]} 12. Ne3 {[%emt 0:03:41]} Bf8 {[%emt 0:08:02]} 13. Bb5 {[%emt 0:07:59]} a3 {[%emt 0:00:52]} 14. b4 {[%emt 0:01:31]} c6 {[%emt 0:12:35]} 15. Be2 {[%emt 0:13:10]} Ne4 {[%emt 0:20:43]} 16. Qb3 {[%emt 0:04:19]} Ndf6 {[%emt 0:00:15]} 17. Bxa3 {[%emt 0:06:03]} Nh5 {[%emt 0:00:35]} 18. Bc1 {[%emt 0:03:40]} Qf6 {[%emt 0:04:03]} 19. Ng4 {[%emt 0:12:00]} Bxg4 {[%emt 0:00:25]} 20. hxg4 {[%emt 0:00:03]} Nf4 {[%emt 0:00:19]} 21. Bxf4 {[%emt 0:02:20]} Qxf4 {[%emt 0:00:10]} 22. Bd3 {[%emt 0:02:51]} Bd6 {[%emt 0:02:47]} 23. Bxe4 {[%emt 0:08:34]} dxe4 {[%emt 0:00:26]} 24. Ne5 {[%emt 0:01:30]} Bxe5 {[%emt 0:00:21]} 25. dxe5 {[%emt 0:00:05]} Qxg4 {[%emt 0:03:04]} 26. Qc4 {[%emt 0:00:33]} Rxe5 {[%emt 0:01:38]} 27. Re3 {[%emt 0:00:50]} Qe6 {[%emt 0:02:50]} 28. Qe2 {[%emt 0:05:38]} b5 {[%emt 0:05:51]} 29. Qe1 {[%emt 0:05:00]} f5 {[%emt 0:03:14]} 30. f3 {[%emt 0:01:42]} Rxa2 {[%emt 0:03:18]} 31. Rxa2 {[%emt 0:01:12]} Qxa2 {[%emt 0:00:10]} 32. fxe4 {[%emt 0:00:09]} Qe6 {[%emt 0:00:13]} 33. Qf2 {[%emt 0:06:19]} Rxe4 {[%emt 0:00:27]} 34. Rf3 {[%emt 0:00:28]} Re2 {[%emt 0:03:14]} 35. Qg3 {[%emt 0:00:12]} Re1+ {[%emt 0:00:31]} 36. Kh2 {[%emt 0:00:02]} Qe5 {[%emt 0:00:19]} 37. Rd3 {[%emt 0:02:43]} Qxg3+ {[%emt 0:04:23]} 38. Kxg3 {[%emt 0:00:02]} Kf7 {[%emt 0:00:13]} 39. Rd6 {[%emt 0:01:22]} Re6 {[%emt 0:00:11]} 40. Rd4 {[%emt 0:00:08]} Kf6 {[%emt 0:00:56]} 41. c4 {[%emt 0:30:06]} 0-1

[Event "41st Jacques-Lemans-Open 2022"]
[Site "St. Veit/Glan"]
[Date "2022.07.09"]
[Round "1.16"]
[White "Moeller, Dustin"]
[Black "Buchegger, Fridolin"]
[Result "1-0"]
[ECO "E92"]
[WhiteElo "2237"]
[BlackElo "1961"]
[Annotator "RC"]
[PlyCount "70"]
[EventDate "2022.07.09"]
[EventType "swiss"]
[EventCountry "AUT"]
[SourceTitle "playchess.com"]
[Source "ChessBase"]
[SourceQuality "1"]
[TimeControl "40/5400+30:1800+30"]

1. d4 {[%emt 0:00:05]} Nf6 {[%emt 0:00:08]} 2. c4 {[%emt 0:00:06]} g6 {[%emt 0:00:05]} 3. Nc3 {[%emt 0:00:06]} Bg7 {[%emt 0:00:06]} 4. e4 {[%emt 0:00:06]} d6 {[%emt 0:00:05]} 5. Be2 {[%emt 0:00:07]} O-O {[%emt 0:03:02]} 6. Nf3 {[%emt 0:00:07]} e5 {[%emt 0:00:11]} 7. Be3 {[%emt 0:00:06]} Nc6 {[%emt 0:00:06]} 8. d5 {[%emt 0:00:31]} Ne7 {[%emt 0:00:07]} 9. Nd2 {[%emt 0:00:04]} Nd7 {[%emt 0:03:16]} 10. b4 {[%emt 0:03:00]} f5 {[%emt 0:11:56]} 11. f3 {[%emt 0:00:08]} Nf6 {[%emt 0:07:47]} 12. c5 {[%emt 0:05:11]} Nh5 {[%emt 0:01:14]} 13. Nc4 {[%emt 0:11:48]} Nf4 {[%emt 0:01:45]} 14. Bf1 {[%emt 0:02:59]} fxe4 {[%emt 0:16:07]} 15. fxe4 {[%emt 0:02:03]} h5 {[%emt 0:00:24]} 16. cxd6 {[%emt 0:05:56]} cxd6 {[%emt 0:00:08]} 17. Nb5 {[%emt 0:00:15]} Bg4 {[%emt 0:00:16]} 18. Qd2 {[%emt 0:01:40]} Nc8 {[%emt 0:02:51]} 19. h3 {[%emt 0:07:54]} Nxh3 {[%emt 0:14:46]} 20. gxh3 {[%emt 0:02:27]} Bf3 {[%emt 0:00:10]} 21. Bg2 {[%emt 0:00:23]} Qh4+ {[%emt 0:00:29]} 22. Qf2 {[%emt 0:05:55]} Qxe4 {[%emt 0:06:37]} 23. Nd2 {[%emt 0:00:07]} Qxd5 {[%emt 0:04:38]} 24. Bxf3 {[%emt 0:03:31]} Qxb5 {[%emt 0:01:32]} 25. Qe2 {[%emt 0:06:46]} Qxb4 {[%emt 0:01:56]} 26. Rb1 {[%emt 0:01:32]} Qh4+ {[%emt 0:03:15]} 27. Bf2 {[%emt 0:00:23]} Qf4 {[%emt 0:01:36]} 28. Bxb7 {[%emt 0:01:34]} Nb6 {[%emt 0:00:50]} 29. Bxa8 {[%emt 0:00:33]} Nxa8 {[%emt 0:00:56]} 30. Qc4+ {[%emt 0:01:46]} Qxc4 {[%emt 0:00:56]} 31. Nxc4 {[%emt 0:00:07]} d5 {[%emt 0:00:08]} 32. Nd2 {[%emt 0:00:50]} Bh6 {[%emt 0:00:48]} 33. Bxa7 {[%emt 0:00:43]} e4 {[%emt 0:00:31]} 34. Rf1 {[%emt 0:03:51]} Rc8 {[%emt 0:00:22]} 35. Rb8 {[%emt 0:00:22]} Nb6 {[%emt 0:00:15]} 1-0

[Event "41st Jacques-Lemans-Open 2022"]
[Site "St. Veit/Glan"]
[Date "2022.07.09"]
[Round "1.17"]
[White "Sovago, Philipp"]
[Black "Vojinov, Danijel"]
[Result "0-1"]
[ECO "E15"]
[WhiteElo "1940"]
[BlackElo "2201"]
[Annotator "RC"]
[PlyCount "58"]
[EventDate "2022.07.09"]
[EventType "swiss"]
[EventCountry "AUT"]
[SourceTitle "playchess.com"]
[Source "ChessBase"]
[SourceQuality "1"]
[TimeControl "40/5400+30:1800+30"]

1. d4 {[%emt 0:00:03]} Nf6 {[%emt 0:00:44]} 2. c4 {[%emt 0:00:22]} e6 {[%emt 0:00:44]} 3. Nf3 {[%emt 0:00:37]} b6 {[%emt 0:00:42]} 4. g3 {[%emt 0:00:41]} Bb7 {[%emt 0:01:59]} 5. Bg2 {[%emt 0:01:11]} c5 {[%emt 0:02:22]} 6. d5 {[%emt 0:03:51]} exd5 {[%emt 0:04:33]} 7. Nh4 {[%emt 0:00:56]} g6 {[%emt 0:04:55]} 8. O-O {[%emt 0:02:56]} Bg7 {[%emt 0:01:07]} 9. cxd5 {[%emt 0:01:24]} O-O {[%emt 0:00:40]} 10. Nc3 {[%emt 0:02:26]} d6 {[%emt 0:01:22]} 11. e4 {[%emt 0:03:40]} Re8 {[%emt 0:01:33]} 12. h3 {[%emt 0:05:17]} a6 {[%emt 0:00:30]} 13. a4 {[%emt 0:01:32]} Nbd7 {[%emt 0:07:14]} 14. f4 {[%emt 0:05:54]} b5 {[%emt 0:04:25]} 15. axb5 {[%emt 0:05:01]} axb5 {[%emt 0:00:02]} 16. Rxa8 {[%emt 0:00:29]} Bxa8 {[%emt 0:00:37]} 17. Nxb5 {[%emt 0:08:49]} Nxe4 {[%emt 0:01:16]} 18. Bxe4 {[%emt 0:04:45]} Rxe4 {[%emt 0:04:15]} 19. Nf3 {[%emt 0:00:47]} Nb6 {[%emt 0:05:49]} 20. Nc3 {[%emt 0:04:39]} Bd4+ {[%emt 0:03:40]} 21. Kh2 {[%emt 0:00:21]} Bxc3 {[%emt 0:00:47]} 22. bxc3 {[%emt 0:00:08]} Nxd5 {[%emt 0:01:38]} 23. Qd3 {[%emt 0:02:46]} Qe7 {[%emt 0:02:45]} 24. Rf2 {[%emt 0:03:17]} c4 {[%emt 0:03:10]} 25. Qc2 {[%emt 0:05:52]} Bb7 {[%emt 0:02:35]} 26. Ng5 {[%emt 0:07:09]} Re1 {[%emt 0:02:43]} 27. Nf3 {[%emt 0:04:26]} Ne3 {[%emt 0:02:00]} 28. Qb1 {[%emt 0:03:33]} Bxf3 {[%emt 0:07:17]} 29. Rxf3 {[%emt 0:00:18]} Ng4+ {[%emt 0:00:31]} 0-1